lending/lending_fUSD_20241229
["ID","MTS","AMOUNT","RATE_DAILY","PERIOD"]
[347083098,1735491055512,-500.0,0.00012634,2]
[347083099,1735491055522,-500.0,0.00012634,2]
[347083100,1735491055531,-500.0,0.00012634,2]
[347083101,1735491055541,-2110.5,0.00012634,2]
[347083102,1735491055551,-500.0,0.00012634,2]
[347083103,1735491055563,-500.0,0.00012634,2]
[347083104,1735491055572,-500.0,0.00012634,2]
[347083105,1735491055581,-500.0,0.00012634,2]
[347083106,1735491055590,-369.33,0.00012634,2]
[347083107,1735491055599,-500.0,0.00012634,2]
[347083108,1735491055608,-500.0,0.00012634,2]
[347083109,1735491055618,-316.70076524,0.00012634,2]
[347083110,1735491055626,-703.26,0.00012634,2]
[347083111,1735491055636,-500.0,0.00012634,2]
[347083112,1735491055645,-510.62,0.00012634,2]
[347083113,1735491055654,-500.0,0.00012634,2]
[347083114,1735491055663,-500.0,0.00012634,2]
[347083115,1735491055672,-500.0,0.00012634,2]
[347083116,1735491055681,-500.0,0.00012634,2]
[347083117,1735491055690,-500.0,0.00012634,2]
[347083118,1735491055699,-379.10349765,0.00012634,2]
[347083119,1735491055708,-500.0,0.00012634,2]
[347083120,1735491055717,-500.0,0.00012634,2]
[347083121,1735491055727,-570.93,0.00012634,2]
[347083122,1735491055737,-1499.18,0.00012635,2]
[347083123,1735491055746,-500.0,0.00012635,2]
[347083124,1735491055758,-578.37,0.00012635,2]
[347083125,1735491055767,-500.0,0.00012635,2]
[347083126,1735491055776,-500.0,0.00012635,2]
[347083127,1735491055785,-548.58,0.00012635,2]
[347083128,1735491055794,-500.0,0.00012635,2]
[347083129,1735491055803,-700.84,0.00012635,2]
[347083130,1735491055813,-2940.43,0.00012635,2]
[347083131,1735491055822,-5636.03,0.00012635,2]
[347083132,1735491055831,-556.4,0.00012635,2]
[347083133,1735491055840,-500.0,0.00012635,2]
[347083134,1735491055849,-1813.25,0.00012635,2]
[347083135,1735491055858,-640.38,0.00012635,2]
[347083136,1735491055867,-15027.68,0.00012635,2]
[347083137,1735491055877,-500.0,0.00012635,2]
[347083138,1735491055886,-500.0,0.00012635,2]
[347083139,1735491055895,-500.0,0.00012635,2]
[347083140,1735491055904,-1140.36,0.00012635,2]
[347083141,1735491055914,-4325.16,0.00012636,2]
[347083142,1735491055923,-500.0,0.00012636,2]
[347083143,1735491055932,-1000.0,0.00012636,2]
[347083144,1735491055941,-500.0,0.00012636,2]
[347083145,1735491055951,-500.0,0.00012636,2]
[347083146,1735491055960,-1186.66,0.00012636,2]
[347083147,1735491055968,-692.34,0.00012636,2]
[347083148,1735491055978,-150.0,0.00012664,2]
[347083149,1735491055987,-150.0,0.00012727,2]
[347083150,1735491055996,-5712.09981663,0.00012762,2]
[347083151,1735491056008,-22263.6831526,0.00012765,2]
[347083152,1735491056017,-22263.6831526,0.00012769,2]
[347083153,1735491056027,-5712.09981663,0.00012775,2]
[347083154,1735491056036,-5712.09981663,0.00012783,2]
[347083155,1735491056045,-22263.6831526,0.00012785,2]
[347083156,1735491056054,-5712.09981663,0.00012785,2]
[347083157,1735491056064,-22263.6831526,0.00012786,2]
[347083158,1735491056073,-5712.09981663,0.00012789,2]
[347083159,1735491056082,-150.0,0.00012791,2]
[347083160,1735491056091,-22263.6831526,0.00012795,2]
[347083161,1735491056102,-5712.09981663,0.00012795,2]
[347083162,1735491056111,-150.0,0.00012799,2]
[347083163,1735491056120,-22263.6831526,0.00012799,2]
[347083164,1735491056129,-402.90577044,0.00012806,2]
[347083165,1735491056139,-500.0,0.00012806,2]
[347083166,1735491056149,-500.0,0.00012806,2]
[347083167,1735491056158,-160.52114977,0.00012806,2]
[347083168,1735491056167,-500.0,0.00012806,2]
[347083169,1735491056176,-791.71,0.00012806,2]
[347083170,1735491056186,-500.0,0.00012806,2]
[347083171,1735491056195,-476.48985923,0.00012806,2]
[347083172,1735491056205,-500.0,0.00012806,2]
[347083173,1735491056213,-500.0,0.00012806,2]
[347083174,1735491056223,-167.80149765,0.00012806,2]
[347083175,1735491056232,-950.63,0.00012806,2]
[347083176,1735491056241,-1210.43,0.00012806,2]
[347083177,1735491056250,-500.0,0.00012806,2]
[347083178,1735491056261,-500.0,0.00012806,2]
[347083179,1735491056270,-500.0,0.00012806,2]
[347083180,1735491056279,-500.0,0.00012806,2]
[347083181,1735491056289,-500.0,0.00012806,2]
[347083182,1735491056298,-500.0,0.00012806,2]
[347083183,1735491056307,-500.0,0.00012806,2]
[347083184,1735491056316,-500.0,0.00012806,2]
[347083185,1735491056326,-500.0,0.00012806,2]
[347083186,1735491056335,-500.0,0.00012806,2]
[347083187,1735491056345,-500.0,0.00012806,2]
[347083188,1735491056354,-500.0,0.00012806,2]
[347083189,1735491056363,-500.0,0.00012806,2]
[347083190,1735491056373,-500.0,0.00012806,2]
[347083191,1735491056382,-500.0,0.00012806,2]
[347083192,1735491056391,-150.0,0.0001284,2]
[347083193,1735491056401,-150.0,0.00012855,2]
[347083194,1735491056410,-150.0,0.0001288,2]
[347083195,1735491056419,-500.0,0.00012897,2]
[347083196,1735491056428,-1159.18,0.00012905,2]
[347083197,1735491056438,-500.0,0.00012905,2]
[347083198,1735491056447,-500.0,0.00012905,2]
[347083199,1735491056457,-500.0,0.00012905,2]
[347083200,1735491056467,-520.55,0.00012905,2]
[347083201,1735491056477,-500.0,0.00012905,2]
[347083202,1735491056487,-500.0,0.00012905,2]
[347083203,1735491056496,-500.0,0.00012905,2]
[347083204,1735491056506,-500.0,0.00012905,2]
[347083205,1735491056516,-500.0,0.00012905,2]
[347083206,1735491056525,-500.0,0.00012905,2]
[347083207,1735491056534,-338.87765035,0.00012905,2]
[347083208,1735491056543,-500.0,0.00012905,2]
[347083209,1735491056553,-500.0,0.00012905,2]
[347083210,1735491056562,-705.2,0.00012905,2]
[347083211,1735491056572,-403.33821885,0.00012905,2]
[347083212,1735491056581,-500.0,0.00012905,2]
[347083213,1735491056589,-500.0,0.00012905,2]
[347083214,1735491056598,-150.701539,0.00012905,2]
[347083215,1735491056607,-500.0,0.00012905,2]
[347083216,1735491056616,-500.0,0.00012905,2]
[347083217,1735491056625,-2192.36,0.00012905,2]
[347083218,1735491056634,-307.92157536,0.00012905,2]
[347083219,1735491056643,-500.0,0.00012905,2]
[347083220,1735491056652,-500.0,0.00012905,2]
[347083221,1735491056661,-500.0,0.00012905,2]
[347083222,1735491056670,-500.0,0.00012905,2]
[347083223,1735491056680,-169.66431726,0.00012905,2]
[347083224,1735491056689,-2173.71,0.00012905,2]
[347083225,1735491056698,-500.0,0.00012905,2]
[347083226,1735491056707,-1775.22,0.00012905,2]
[347083227,1735491056716,-1409.21,0.00012905,2]
[347083228,1735491056725,-462.74606821,0.00012905,2]
[347083229,1735491056734,-500.0,0.00012905,2]
[347083230,1735491056743,-500.0,0.00012905,2]
[347083231,1735491056753,-500.0,0.00012905,2]
[347083232,1735491056762,-204.50681493,0.00012905,2]
[347083233,1735491056771,-500.0,0.00012905,2]
[347083234,1735491056780,-638.2217288,0.00012905,2]
[347083235,1735491056789,-500.0,0.00012905,2]
[347083236,1735491056798,-500.0,0.00012905,2]
[347083237,1735491056807,-500.0,0.00012905,2]
[347083238,1735491056816,-500.0,0.00012905,2]
[347083239,1735491056825,-2866.13,0.00012905,2]
[347083240,1735491056834,-500.0,0.00012905,2]
[347083241,1735491056843,-500.0,0.00012905,2]
[347083242,1735491056852,-500.0,0.00012905,2]
[347083243,1735491056861,-500.0,0.00012905,2]
[347083244,1735491056870,-500.0,0.00012905,2]
[347083245,1735491056879,-500.0,0.00012905,2]
[347083246,1735491056888,-500.0,0.00012905,2]
[347083247,1735491056897,-500.0,0.00012905,2]
[347083248,1735491056906,-500.0,0.00012905,2]
[347083249,1735491056916,-500.0,0.00012905,2]
[347083250,1735491056925,-500.0,0.00012905,2]
[347083251,1735491056934,-500.0,0.00012905,2]
[347083252,1735491056943,-1154.75,0.00012905,2]
[347083253,1735491056952,-500.0,0.00012905,2]
[347083254,1735491056961,-1890.37,0.00012905,2]
[347083255,1735491056970,-781.33,0.00012905,2]
[347083256,1735491056979,-500.0,0.00012905,2]
[347083257,1735491056989,-500.0,0.00012905,2]
[347083258,1735491056998,-1791.32,0.00012905,2]
[347083259,1735491057009,-500.0,0.00012905,2]
[347083260,1735491057019,-500.0,0.00012905,2]
[347083261,1735491057028,-1113.85,0.00012905,2]
[347083262,1735491057037,-409.64932812,0.00012905,2]
[347083263,1735491057046,-500.0,0.00012905,2]
[347083264,1735491057056,-500.0,0.00012905,2]
[347083265,1735491057066,-500.0,0.00012905,2]
[347083266,1735491057075,-459.73899846,0.00012905,2]
[347083267,1735491057084,-695.21,0.00012905,2]
[347083268,1735491057094,-500.0,0.00012905,2]
[347083269,1735491057107,-500.0,0.00012905,2]
[347083270,1735491057116,-359.91322611,0.00012905,2]
[347083271,1735491057126,-500.0,0.00012905,2]
[347083272,1735491057135,-822.12,0.00012905,2]
[347083273,1735491057145,-500.0,0.00012905,2]
[347083274,1735491057154,-395.34033406,0.00012905,2]
[347083275,1735491057163,-500.0,0.00012905,2]
[347083276,1735491057173,-537.2886429,0.00012905,2]
[347083277,1735491057183,-500.0,0.00012905,2]
[347083278,1735491057193,-500.0,0.00012905,2]
[347083279,1735491057202,-577.92,0.00012905,2]
[347083280,1735491057212,-308.92560412,0.00012905,2]
[347083281,1735491057221,-500.0,0.00012905,2]
[347083282,1735491057230,-500.0,0.00012905,2]
[347083283,1735491057240,-870.38,0.00012905,2]
[347083284,1735491057249,-500.0,0.00012905,2]
[347083285,1735491057260,-500.0,0.00012905,2]
[347083286,1735491057269,-500.0,0.00012905,2]
[347083287,1735491057278,-500.0,0.00012905,2]
[347083288,1735491057288,-500.0,0.00012905,2]
[347083289,1735491057297,-500.0,0.00012905,2]
[347083290,1735491057306,-500.0,0.00012905,2]
[347083291,1735491057316,-1015.64,0.00012905,2]
[347083292,1735491057325,-3278.13,0.00012905,2]
[347083293,1735491057334,-500.0,0.00012905,2]
[347083294,1735491057343,-500.0,0.00012905,2]
[347083295,1735491057353,-394.9257911,0.00012905,2]
[347083296,1735491057362,-500.0,0.00012905,2]
[347083297,1735491057372,-500.0,0.00012905,2]
[347083298,1735491057381,-500.0,0.00012905,2]
[347083299,1735491057391,-500.0,0.00012905,2]
[347083300,1735491057400,-500.0,0.00012905,2]
[347083301,1735491057409,-620.96,0.00012905,2]
[347083302,1735491057419,-704.14,0.00012905,2]
[347083303,1735491057428,-1840.21,0.00012905,2]
[347083304,1735491057438,-500.0,0.00012906,2]
[347083305,1735491057448,-500.0,0.00012906,2]
[347083306,1735491057457,-579.65541662,0.00012906,2]
[347083307,1735491057466,-535.51177109,0.00012906,2]
[347083308,1735491057475,-816.1,0.00012906,2]
[347083309,1735491057486,-500.0,0.00012906,2]
[347083310,1735491057495,-500.0,0.00012906,2]
[347083311,1735491057505,-590.14,0.00012906,2]
[347083312,1735491057515,-500.0,0.00012906,2]
[347083313,1735491057524,-500.0,0.00012906,2]
[347083314,1735491057533,-500.0,0.00012906,2]
[347083315,1735491057542,-512.73741126,0.00012906,2]
[347083316,1735491057551,-499.69199531,0.00012906,2]
[347083317,1735491057560,-430.61562765,0.00012906,2]
[347083318,1735491057569,-500.0,0.00012906,2]
[347083319,1735491057578,-500.0,0.00012906,2]
[347083320,1735491057587,-591.61575368,0.00012906,2]
[347083321,1735491057596,-500.0,0.00012906,2]
[347083322,1735491057605,-500.0,0.00012906,2]
[347083323,1735491057614,-500.0,0.00012906,2]
[347083324,1735491057623,-1340.36,0.00012906,2]
[347083325,1735491057633,-408.69,0.00012906,2]
[347083326,1735491057644,-762.4,0.00012906,2]
[347083327,1735491057652,-500.0,0.00012906,2]
[347083328,1735491057661,-469.53,0.00012906,2]
[347083329,1735491057670,-500.0,0.00012906,2]
[347083330,1735491057680,-500.0,0.00012906,2]
[347083331,1735491057689,-500.0,0.00012906,2]
[347083332,1735491057698,-500.0,0.00012906,2]
[347083333,1735491057707,-500.0,0.00012906,2]
[347083334,1735491057717,-500.0,0.00012906,2]
[347083335,1735491057725,-500.0,0.00012906,2]
[347083336,1735491057735,-500.0,0.00012906,2]
[347083337,1735491057743,-2344.33,0.00012906,2]
[347083338,1735491057753,-909.47,0.00012906,2]
[347083339,1735491057763,-865.68,0.00012906,2]
[347083340,1735491057772,-500.0,0.00012906,2]
[347083341,1735491057781,-500.0,0.00012906,2]
[347083342,1735491057790,-701.25,0.00012906,2]
[347083343,1735491057799,-520.69,0.00012906,2]
[347083344,1735491057808,-500.0,0.00012906,2]
[347083345,1735491057817,-500.0,0.00012906,2]
[347083346,1735491057826,-500.0,0.00012906,2]
[347083347,1735491057835,-602.07,0.00012906,2]
[347083348,1735491057844,-500.0,0.00012906,2]
[347083349,1735491057855,-500.0,0.00012906,2]
[347083350,1735491057864,-500.0,0.00012906,2]
[347083351,1735491057874,-500.0,0.00012906,2]
[347083352,1735491057883,-500.0,0.00012906,2]
[347083353,1735491057892,-500.0,0.00012906,2]
[347083354,1735491057901,-500.0,0.00012906,2]
[347083355,1735491057910,-214.79,0.00012906,2]
[347083356,1735491057919,-500.0,0.00012906,2]
[347083357,1735491057928,-500.0,0.00012906,2]
[347083358,1735491057937,-488.99,0.00012906,2]
[347083359,1735491057946,-500.0,0.00012906,2]
[347083360,1735491057955,-500.0,0.00012906,2]
[347083361,1735491057964,-363.02243346,0.00012906,2]
[347083362,1735491057973,-500.0,0.00012906,2]
[347083363,1735491057982,-500.0,0.00012906,2]
[347083364,1735491057992,-253.19014925,0.00012906,2]
[347083365,1735491058001,-1953.32,0.00012906,2]
[347083366,1735491058011,-500.0,0.00012906,2]
[347083367,1735491058019,-500.0,0.00012906,2]
[347083368,1735491058029,-500.0,0.00012906,2]
[347083369,1735491058038,-500.0,0.00012906,2]
[347083370,1735491058047,-500.0,0.00012906,2]
[347083371,1735491058057,-500.0,0.00012906,2]
[347083372,1735491058066,-500.0,0.00012906,2]
[347083373,1735491058076,-255.35,0.00012906,2]
[347083374,1735491058085,-621.43,0.00012906,2]
[347083375,1735491058095,-500.0,0.00012906,2]
[347083376,1735491058107,-434.17,0.00012906,2]
[347083377,1735491058116,-500.0,0.00012906,2]
[347083378,1735491058126,-500.0,0.00012906,2]
[347083379,1735491058135,-500.0,0.00012906,2]
[347083380,1735491058145,-873.53,0.00012906,2]
[347083381,1735491058155,-500.0,0.00012906,2]
[347083382,1735491058164,-500.0,0.00012906,2]
[347083383,1735491058174,-500.0,0.00012906,2]
[347083384,1735491058184,-411.46,0.00012906,2]
[347083385,1735491058194,-325.87,0.00012906,2]
[347083386,1735491058203,-722.38,0.00012906,2]
[347083387,1735491058213,-345.85,0.00012906,2]
[347083388,1735491058222,-287.37,0.00012906,2]
[347083389,1735491058231,-500.0,0.00012906,2]
[347083390,1735491058240,-500.0,0.00012906,2]
[347083391,1735491058250,-500.0,0.00012906,2]
[347083392,1735491058260,-500.0,0.00012906,2]
[347083393,1735491058270,-500.0,0.00012906,2]
[347083394,1735491058279,-500.0,0.00012906,2]
[347083395,1735491058290,-500.0,0.00012906,2]
[347083396,1735491058299,-500.0,0.00012906,2]
[347083397,1735491058308,-2838.92,0.00012906,2]
[347083398,1735491058318,-500.0,0.00012906,2]
[347083399,1735491058327,-500.0,0.00012906,2]
[347083400,1735491058336,-3628.4,0.00012906,2]
[347083401,1735491058346,-500.0,0.00012906,2]
[347083402,1735491058357,-876.23,0.00012906,2]
[347083403,1735491058367,-3692.81,0.00012906,2]
[347083404,1735491058377,-500.0,0.00012906,2]
[347083405,1735491058386,-1101.36,0.00012906,2]
[347083406,1735491058396,-870.98,0.00012906,2]
[347083407,1735491058405,-500.0,0.00012906,2]
[347083408,1735491058415,-1348.28,0.00012906,2]
[347083409,1735491058425,-1836.05,0.00012906,2]
[347083410,1735491058435,-500.0,0.00012907,2]
[347083411,1735491058444,-999.87,0.00012907,2]
[347083412,1735491058454,-510.19,0.00012907,2]
[347083413,1735491058463,-1921.52,0.00012907,2]
[347083414,1735491058475,-546.78,0.00012907,2]
[347083415,1735491058485,-3871.1,0.00012907,2]
[347083416,1735491058496,-592.58,0.00012907,2]
[347083417,1735491058505,-513.22,0.00012907,2]
[347083418,1735491058515,-369.71,0.00012907,2]
[347083419,1735491058524,-500.0,0.00012907,2]
[347083420,1735491058533,-1175.67,0.00012907,2]
[347083421,1735491058543,-544.24741616,0.00012907,2]
[347083422,1735491058553,-500.0,0.00012907,2]
[347083423,1735491058563,-500.0,0.00012907,2]
[347083424,1735491058572,-515.44,0.00012908,2]
[347083425,1735491058582,-228.38855227,0.00012908,2]
[347083426,1735491058591,-561.32844124,0.00012908,2]
[347083427,1735491058602,-615.03,0.00012908,2]
[347083428,1735491058611,-500.0,0.00012908,2]
[347083429,1735491058621,-500.0,0.00012908,2]
[347083430,1735491058631,-500.0,0.00012908,2]
[347083431,1735491058640,-309.24765215,0.00012908,2]
[347083432,1735491058650,-500.0,0.00012908,2]
[347083433,1735491058659,-500.0,0.00012908,2]
[347083434,1735491058669,-899.47,0.00012908,2]
[347083435,1735491058679,-500.0,0.00012908,2]
[347083436,1735491058690,-500.0,0.00012908,2]
[347083437,1735491058701,-815.97,0.00012908,2]
[347083438,1735491058710,-18568.48,0.00012908,2]
[347083439,1735491058720,-500.0,0.00012908,2]
[347083440,1735491058729,-500.0,0.00012908,2]
[347083441,1735491058738,-545.9,0.00012908,2]
[347083442,1735491058748,-969.49,0.00012908,2]
[347083443,1735491058758,-500.0,0.00012908,2]
[347083444,1735491058767,-500.0,0.00012908,2]
[347083445,1735491058777,-1026.67,0.00012908,2]
[347083446,1735491058786,-500.0,0.00012908,2]
[347083447,1735491058796,-500.0,0.00012908,2]
[347083448,1735491058805,-500.0,0.00012908,2]
[347083449,1735491058815,-500.0,0.00012908,2]
[347083450,1735491058824,-2110.5,0.00012908,2]
[347083451,1735491058834,-500.0,0.00012908,2]
[347083452,1735491058843,-500.0,0.00012908,2]
[347083453,1735491058853,-500.0,0.00012908,2]
[347083454,1735491058863,-153.00992122,0.00012908,2]
[347083455,1735491058872,-500.0,0.00012908,2]
[347083456,1735491058882,-500.0,0.00012908,2]
[347083457,1735491058891,-703.26,0.00012908,2]
[347083458,1735491058901,-491.9564486,0.00012908,2]
[347083459,1735491058910,-510.62,0.00012908,2]
[347083460,1735491058919,-500.0,0.00012908,2]
[347083461,1735491058929,-500.0,0.00012908,2]
[347083462,1735491058939,-610.3581852,0.00012908,2]
[347083463,1735491058948,-500.0,0.00012908,2]
[347083464,1735491058957,-500.0,0.00012908,2]
[347083465,1735491058967,-500.0,0.00012908,2]
[347083466,1735491058977,-500.0,0.00012908,2]
[347083467,1735491058987,-570.93,0.00012908,2]
[347083468,1735491058996,-1499.18,0.00012909,2]
[347083469,1735491059007,-500.0,0.00012909,2]
[347083470,1735491059017,-578.37,0.00012909,2]
[347083471,1735491059026,-500.0,0.00012909,2]
[347083472,1735491059036,-500.0,0.00012909,2]
[347083473,1735491059045,-548.58,0.00012909,2]
[347083474,1735491059054,-500.0,0.00012909,2]
[347083475,1735491059064,-700.84,0.00012909,2]
[347083476,1735491059075,-2940.43,0.00012909,2]
[347083477,1735491059085,-5636.03,0.00012909,2]
[347083478,1735491059094,-556.4,0.00012909,2]
[347083479,1735491059107,-500.0,0.00012909,2]
[347083480,1735491059117,-1813.25,0.00012909,2]
[347083481,1735491059126,-640.38,0.00012909,2]
[347083482,1735491059136,-15027.68,0.00012909,2]
[347083483,1735491059146,-500.0,0.00012909,2]
[347083484,1735491059156,-500.0,0.00012909,2]
[347083485,1735491059166,-500.0,0.00012909,2]
[347083486,1735491059176,-1140.36,0.00012909,2]
[347083487,1735491059186,-4325.16,0.0001291,2]
[347083488,1735491059195,-336.1388,0.0001291,2]
[347083489,1735491059205,-1000.0,0.0001291,2]
[347083490,1735491059214,-500.0,0.0001291,2]
[347083491,1735491059224,-500.0,0.0001291,2]
[347083492,1735491059234,-1186.66,0.0001291,2]
[347083493,1735491059243,-692.34,0.0001291,2]
[347083494,1735491059252,-150.0,0.00012918,2]
[347083495,1735491059263,-150.0,0.0001295,2]
[347083496,1735491059273,-150.0,0.00012982,2]
[347083497,1735491059283,-512.4495211,0.00013,2]
[347083498,1735491059292,-150.0,0.00013004,2]
[347083499,1735491059302,-150.0,0.00013045,2]
[347083500,1735491059311,-500.0,0.0001308,2]
[347083501,1735491059321,-500.0,0.0001308,2]
[347083502,1735491059330,-500.0,0.0001308,2]
[347083503,1735491059340,-791.71,0.0001308,2]
[347083504,1735491059350,-500.0,0.0001308,2]
[347083505,1735491059360,-500.0,0.0001308,2]
[347083506,1735491059369,-500.0,0.0001308,2]
[347083507,1735491059380,-950.63,0.0001308,2]
[347083508,1735491059390,-1210.43,0.0001308,2]
[347083509,1735491059399,-500.0,0.0001308,2]
[347083510,1735491059409,-500.0,0.0001308,2]
[347083511,1735491059419,-500.0,0.0001308,2]
[347083512,1735491059429,-500.0,0.0001308,2]
[347083513,1735491059439,-500.0,0.0001308,2]
[347083514,1735491059450,-500.0,0.0001308,2]
[347083515,1735491059460,-500.0,0.0001308,2]
[347083516,1735491059470,-500.0,0.0001308,2]
[347083517,1735491059481,-500.0,0.0001308,2]
[347083518,1735491059491,-500.0,0.0001308,2]
[347083519,1735491059501,-500.0,0.0001308,2]
[347083520,1735491059511,-500.0,0.0001308,2]
[347083521,1735491059522,-500.0,0.0001308,2]
[347083522,1735491059532,-500.0,0.0001308,2]
[347083523,1735491059542,-500.0,0.0001308,2]
[347083524,1735491059552,-250.0,0.00013098,2]
[347083525,1735491059562,-150.0,0.00013098,2]
[347083526,1735491059572,-156.592,0.00013098,2]
[347083527,1735491059582,-150.0,0.00013098,2]
[347083528,1735491059591,-159.0,0.000131,2]
[347083529,1735491059601,-150.0,0.00013109,2]
[347083530,1735491059610,-150.0,0.00013127,2]
[347083531,1735491059620,-150.0,0.0001316,2]
[347083532,1735491059630,-150.0,0.00013173,2]
[347083533,1735491059640,-1159.18,0.00013179,2]
[347083534,1735491059649,-500.0,0.00013179,2]
[347083535,1735491059659,-500.0,0.00013179,2]
[347083536,1735491059668,-500.0,0.00013179,2]
[347083537,1735491059678,-520.55,0.00013179,2]
[347083538,1735491059687,-546.56048422,0.00013179,2]
[347083539,1735491059697,-500.0,0.00013179,2]
[347083540,1735491059707,-500.0,0.00013179,2]
[347083541,1735491059716,-500.0,0.00013179,2]
[347083542,1735491059726,-500.0,0.00013179,2]
[347083543,1735491059736,-387.30040723,0.00013179,2]
[347083544,1735491059747,-547.65680864,0.00013179,2]
[347083545,1735491059757,-500.0,0.00013179,2]
[347083546,1735491059766,-705.2,0.00013179,2]
[347083547,1735491059776,-233.74172101,0.00013179,2]
[347083548,1735491059785,-500.0,0.00013179,2]
[347083549,1735491059796,-150.701539,0.00013179,2]
[347083550,1735491059806,-500.0,0.00013179,2]
[347083551,1735491059816,-500.0,0.00013179,2]
[347083552,1735491059826,-2192.36,0.00013179,2]
[347083553,1735491059835,-500.0,0.00013179,2]
[347083554,1735491059845,-500.0,0.00013179,2]
[347083555,1735491059855,-500.0,0.00013179,2]
[347083556,1735491059864,-500.0,0.00013179,2]
[347083557,1735491059874,-2173.71,0.00013179,2]
[347083558,1735491059883,-265.71411966,0.00013179,2]
[347083559,1735491059893,-1775.22,0.00013179,2]
[347083560,1735491059902,-1409.21,0.00013179,2]
[347083561,1735491059912,-500.0,0.00013179,2]
[347083562,1735491059922,-500.0,0.00013179,2]
[347083563,1735491059931,-500.0,0.00013179,2]
[347083564,1735491059941,-500.0,0.00013179,2]
[347083565,1735491059951,-500.0,0.00013179,2]
[347083566,1735491059960,-500.0,0.00013179,2]
[347083567,1735491059969,-500.0,0.00013179,2]
[347083568,1735491059979,-500.0,0.00013179,2]
[347083569,1735491059989,-2866.13,0.00013179,2]
[347083570,1735491060000,-500.0,0.00013179,2]
[347083571,1735491060009,-500.0,0.00013179,2]
[347083572,1735491060019,-500.0,0.00013179,2]
[347083573,1735491060030,-500.0,0.00013179,2]
[347083574,1735491060041,-500.0,0.00013179,2]
[347083575,1735491060051,-500.0,0.00013179,2]
[347083576,1735491060061,-500.0,0.00013179,2]
[347083577,1735491060073,-500.0,0.00013179,2]
[347083578,1735491060082,-500.0,0.00013179,2]
[347083579,1735491060092,-500.0,0.00013179,2]
[347083580,1735491060106,-517.61415336,0.00013179,2]
[347083581,1735491060116,-500.0,0.00013179,2]
[347083582,1735491060127,-500.0,0.00013179,2]
[347083583,1735491060139,-1154.75,0.00013179,2]
[347083584,1735491060150,-1890.37,0.00013179,2]
[347083585,1735491060160,-781.33,0.00013179,2]
[347083586,1735491060170,-500.0,0.00013179,2]
[347083587,1735491060181,-500.0,0.00013179,2]
[347083588,1735491060191,-1791.32,0.00013179,2]
[347083589,1735491060202,-500.0,0.00013179,2]
[347083590,1735491060212,-500.0,0.00013179,2]
[347083591,1735491060222,-1113.85,0.00013179,2]
[347083592,1735491060232,-500.0,0.00013179,2]
[347083593,1735491060243,-500.0,0.00013179,2]
[347083594,1735491060253,-500.0,0.00013179,2]
[347083595,1735491060264,-695.21,0.00013179,2]
[347083596,1735491060274,-500.0,0.00013179,2]
[347083597,1735491060284,-500.0,0.00013179,2]